Cogmind - Beta 16 --- EXPLORER MODE // 2025.11.18 @ 18:49:16 Player: K.K.Y. Result: Destroyed by G-73 Enforcer with Phase Gun Performance ------------- Evolutions (8) 4000 Regions Visited (21) 4200 Robots Destroyed (225) 1125 Value Destroyed (12522) 12522 Prototype IDs (73) 1460 Alien Tech Used (0) 0 Bonus (9650) 9650 TOTAL SCORE: 32957 Bonus ------- High Alert Combat Kills 293 Follower Combat Kills 3940 Awakened Behemoth Slayer 1000 Entered Garrisons 400 Entered DSFs 500 Met Imprinter 300 Was Imprinted 300 Built Enhanced Grunts 300 A7 Reached Mainframe 300 Met R17 at Cetus 500 Acquired SGEMP 2000 Friendly Fire -183 Cogmind --------- Core Integrity 0/1450 Matter 300/300 Energy 100/100 System Corruption 5% Temperature Cool (18) Movement Core (1350) Ox26 Location -2/Research Parts ------- > --- POWER (3) -------- (None) > --- PROPULSION (6) --- (None) > --- UTILITY (10) ----- Huge Storage Unit Machine Analyzer Advanced Target Analyzer System Mapper > --- WEAPON (5) ------- (None) > --- INVENTORY (25) --- Wheel Huge Storage Unit Authchip [R/NC] Authchip [R/NC] Authchip [R/Combat] Authchip [Propulsion] Authchip [Device] Authchip [Armor] Relay Coupler [NC] (44) Relay Coupler [Swarmer] (52) Relay Coupler [Cutter] (47) Relay Coupler [Grunt] (47) Relay Coupler [Duelist] (34) Relay Coupler [Sentry] (38) Relay Coupler [Specialist] (37) Relay Coupler [Hunter] (21) Relay Coupler [Heavy] (25) Relay Coupler [Behemoth] (19) Advanced Component Analysis Suite Advanced Remote Datajack CR-A16's Behemoth Slayer SGEMP Prototype Peak State ------------ > --- POWER ------------ Micro Antimatter Reactor Micro Antimatter Reactor Quantum Reactor > --- PROPULSION ------- Heavy Siege Treads Advanced Heavy Treads Biometal Heavy Treads > --- UTILITY ---------- Experimental Heat Sink 2N-1CE's Frost Array Huge Storage Unit Machine Analyzer Advanced Target Analyzer ME-RLN's Chromatic Screen Experimental Shield Generator Experimental Hacking Suite System Mapper Experimental System Shield > --- WEAPON ----------- Improved Matter Neutralizer Enhanced Nova Cannon Improved Potential Cannon Vibroblade > --- INVENTORY -------- Huge Storage Unit Layered Medium Armor Plating Layered Medium Armor Plating Authchip [R/NC] Authchip [R/NC] Authchip [R/Combat] Authchip [Propulsion] Authchip [Device] Authchip [Armor] Relay Coupler [NC] Relay Coupler [Swarmer] Relay Coupler [Cutter] Relay Coupler [Grunt] Relay Coupler [Duelist] Relay Coupler [Sentry] Relay Coupler [Specialist] Relay Coupler [Hunter] Relay Coupler [Heavy] Relay Coupler [Behemoth] Advanced Component Analysis Suite Advanced Dynamic Insulation System Advanced Remote Datajack CR-A16's Behemoth Slayer SGEMP Prototype [Rating: 209] Favorites ----------- Power Zionite Heavy DM Reactor Engine Light Ion Engine Power Core Reinforced Fission Core Reactor Zionite Heavy DM Reactor Propulsion Aluminum Leg Treads Armored Medium Treads Leg Aluminum Leg Flight Unit Improved Flight Unit Utility Machine Analyzer Device Experimental Heat Sink Storage Huge Storage Unit Processor Machine Analyzer Hackware System Mapper Protection Improved Medium Armor Plating Weapon Heavy Particle Gun Energy Gun Heavy Particle Gun Energy Cannon Compact Ion Cannon Ballistic Gun Railgun Ballistic Cannon Linear Accelerator Special Weapon Stasis Beam Slashing Weapon Vibroblade Piercing Weapon CR-A16's Behemoth Slayer Build | -11 -10 -10 -9 -9 -7 -6 -6 -6 -6 -6 -5 -5 -5 -5 -5 -5 -5 -4 -3 -3 -2 ------- Run | Yrd Mat Min Mat Min Zio Pro Fac Gar Fac DSF Fac Gar Fac Ext Cet Arc Hub Fac Res Tes Res Slots Evolved 17 | . 1 . 2 . . . 6 . . . 2 . . . . . . 2 2 . 2 Power 2 | . . . . . . . 1 . . . . . . . . . . . . . 1 Propulsion 4 | . 1 . . . . . 3 . . . . . . . . . . . . . . Utility 8 | . . . 2 . . . 2 . . . 2 . . . . . . 2 . . . Weapon 3 | . . . . . . . . . . . . . . . . . . . 2 . 1 Parts Attached 205 | 6 3 2 7 . 5 4 20 14 . 7 11 22 6 10 6 1 8 10 1 44 18 Power 28 | 1 . . . . 1 2 4 2 . . 2 2 . 2 . . 1 . . 6 5 Engine 8 | 1 . . . . . 1 3 1 . . . . . 1 . . . . . . 1 Core 3 | . . . . . . 1 . 1 . . . 1 . . . . . . . . . Reactor 17 | . . . . . 1 . 1 . . . 2 1 . 1 . . 1 . . 6 4 Propulsion 50 | 2 2 . 1 . 1 2 8 3 . 7 2 5 5 1 2 . 3 1 . 2 3 Treads 29 | . . . . . . . . 1 . 4 2 5 5 1 2 . 3 1 . 2 3 Leg 20 | 2 2 . . . 1 2 8 2 . 3 . . . . . . . . . . . Wheel . | . . . . . . . . . . . . . . . . . . . . . . Hover . | . . . . . . . . . . . . . . . . . . . . . . Flight 1 | . . . 1 . . . . . . . . . . . . . . . . . . Utility 75 | 1 1 1 1 . 3 . 5 5 . . 3 12 1 6 2 . 2 5 . 22 5 Device 37 | . . 1 . . 2 . 3 3 . . 1 7 . 3 . . 2 3 . 10 2 Storage 10 | 1 . . . . 1 . 1 . . . . . . 1 . . . 2 . 4 . Processor 5 | . . . 1 . . . 1 . . . . 2 . . . . . . . . 1 Hackware 7 | . . . . . . . . . . . 1 . 1 . . . . . . 5 . Protection 16 | . 1 . . . . . . 2 . . 1 3 . 2 2 . . . . 3 2 Artifact . | . . . . . . . . . . . . . . . . . . . . . . Weapon 52 | 2 . 1 5 . . . 3 4 . . 4 3 . 1 2 1 2 4 1 14 5 Energy Gun 24 | 2 . . 3 . . . 3 1 . . 3 . . . 1 . . 2 . 6 3 Energy Cannon 11 | . . . 2 . . . . . . . 1 . . 1 . 1 . . . 4 2 Ballistic Gun 3 | . . . . . . . . . . . . . . . 1 . . . 1 1 . Ballistic Cannon 6 | . . 1 . . . . . 2 . . . 2 . . . . . 1 . . . Launcher . | . . . . . . . . . . . . . . . . . . . . . . Special Weapon 2 | . . . . . . . . . . . . . . . . . . . . 2 . Impact Weapon . | . . . . . . . . . . . . . . . . . . . . . . Slashing Weapon 3 | . . . . . . . . . . . . . . . . . 1 1 . 1 . Piercing Weapon 3 | . . . . . . . . 1 . . . 1 . . . . 1 . . . . Special Melee Weapon . | . . . . . . . . . . . . . . . . . . . . . . Unidentified Prototypes 57 | . . 1 3 . 2 . 1 . . . 4 3 . 3 4 . 2 3 . 30 1 Parts Lost 72 | . . . . . . 3 . 7 . 1 2 13 . 4 . . . . . 17 25 Power 11 | . . . . . . 1 . . . 1 . 1 . . . . . . . 3 5 Propulsion 15 | . . . . . . 2 . 4 . . . 3 . . . . . . . 3 3 Utility 30 | . . . . . . . . 2 . . 1 7 . 4 . . . . . 7 9 Weapon 16 | . . . . . . . . 1 . . 1 2 . . . . . . . 4 8 Highest Loss Streak 23 | . . . . . . 2 . 2 . 1 1 6 . 3 . . . . . 3 23 To Critical Strikes 5 | . . . . . . . . . . . . 1 . . . . . . . 4 . Average Backups 19 | . 2 6 8 9 10 15 20 24 25 24 25 24 25 24 24 24 24 25 25 24 22 Power . | . . . . . . . 2 3 4 3 1 . . . . 1 1 1 1 . . Propulsion . | . . 1 1 1 . . . . . . . . . . 1 1 1 2 2 1 . Utility 13 | . . 4 5 6 4 5 6 14 19 19 21 20 21 21 20 20 20 20 20 20 19 Weapon 3 | . . 1 2 2 4 8 10 6 2 2 2 3 3 2 1 1 1 1 1 1 1 Tool/Special . | . . . . . . . . . . . . . . . . . . . . . . Unused Backups 41 | . 1 . . . 1 . 4 5 . 1 3 4 . . 1 . 2 . . 1 18 Power 4 | . . . . . . . 1 1 . 1 1 . . . . . . . . . . Propulsion 2 | . 1 . . . . . . . . . . . . . . . 1 . . . . Utility 26 | . . . . . 1 . . 1 . . 1 4 . . . . 1 . . 1 17 Weapon 7 | . . . . . . . 3 2 . . 1 . . . 1 . . . . . . Tool/Special 2 | . . . . . . . . 1 . . . . . . . . . . . . 1 Average Slot Usage (%) 90 | . 95 100 83 90 98 98 95 88 93 83 89 84 98 91 86 87 87 87 78 78 73 Engine 4 | . 12 12 10 10 8 5 6 3 . 1 3 . . 3 5 5 . . . . . Reactor 4 | . . . . . 1 . 3 6 6 . 4 8 5 5 5 5 10 10 9 8 9 Treads 11 | . . . . . . . . 2 6 16 27 24 31 31 22 22 22 19 13 11 10 Leg 14 | . 34 37 29 30 30 29 34 25 25 9 . . . . . . . . . . . Device 15 | . . 7 10 10 18 20 21 17 18 18 15 18 16 12 11 11 11 23 22 17 15 Storage 8 | . 12 12 10 10 10 10 7 6 6 6 5 5 5 7 11 11 11 10 9 8 4 Processor 7 | . . . 4 10 10 10 6 6 6 6 5 6 11 11 11 11 11 10 9 4 6 Hackware 1 | . . . . . . . . . . . 3 1 4 1 . . . . . 6 11 Protection 4 | . 10 4 . . . . . 4 6 6 9 6 5 4 10 11 9 5 4 4 . Energy Gun 9 | . 25 25 12 20 20 20 12 6 . . 2 . . . . 5 5 4 . 1 . Energy Cannon 1 | . . . 7 . . . . . . . 3 1 . 3 1 4 5 1 . 2 8 Ballistic Cannon 1 | . . . . . . . . 4 12 12 3 6 11 3 . . . . 4 . . Peak Build Rating 209 | 6 8 16 26 26 51 51 86 84 78 78 99 112 109 109 123 124 133 152 159 197 209 Average Rating 86 | 3 7 12 22 26 36 48 79 72 78 70 89 97 106 99 111 123 129 146 154 173 179 On Entrance 80 | . 6 8 16 26 26 51 48 84 78 78 75 99 109 106 92 119 124 133 152 159 176 Avg Prop Armor Cover (%) 9 | . . . . . . . . 8 9 9 16 4 . . . . . . . 10 10 Naked Turns . | . . . . . . . . . . . . . . . . . . . . . . Heaviest Build 226 | 17 20 20 22 20 100 101 197 139 139 140 152 152 143 155 141 147 152 226 159 161 173 Greatest Support 235 | 20 30 30 30 30 45 45 114 114 74 175 184 184 184 171 217 217 217 235 235 235 215 Greatest Overweight (x) 35 | . . . 7 . 3 10 2 5 1 4 2 35 1 1 1 . . 1 . 2 29 Average Overweight (x) . | . . . . . 1 1 1 1 1 . . . . . . . . . . . . Largest Inventory Capacity 25 | 10 10 10 10 10 25 25 25 25 25 25 25 25 25 25 25 25 25 25 25 25 25 Average Capacity 22 | 8 10 10 10 10 18 25 25 25 25 25 25 25 25 25 25 25 25 25 25 25 25 Most Carried 25 | 5 3 9 10 9 14 17 25 25 25 25 25 25 25 25 25 25 25 25 25 25 25 Average Carried 19 | . 2 6 8 9 10 15 20 24 25 24 24 24 25 24 24 24 24 25 25 24 24 Final Capacity 25 | 10 10 10 10 10 25 25 25 25 25 25 25 25 25 25 25 25 25 25 25 25 25 Final Carried 25 | . 3 7 9 9 14 16 25 25 25 25 25 25 25 25 25 24 25 25 25 25 23 Class Distribution -------------------- 57% | Hacker-Mutant 29% | Scavenger-Mutant 6% | Wizard-Tank 3% | Messiah-Mutant Dominant Class ---------------- Hacker-Mutant | -10/Materials Hacker-Mutant | -10/Mines Hacker-Mutant | -9/Materials Hacker-Mutant | -9/Mines Hacker-Mutant | -7/Zion Hacker-Mutant | -6/Proximity Caves Hacker-Mutant | -6/Factory Hacker-Mutant | -6/Garrison Scavenger-Mutant | -6/Factory Scavenger-Mutant | -6/DSF Messiah-Mutant | -5/Factory Scavenger-Mutant | -5/Garrison Hacker-Mutant | -5/Factory Scavenger-Mutant | -5/Extension Scavenger-Mutant | -5/Cetus Scavenger-Mutant | -5/Archives Scavenger-Mutant | -5/Hub_04(d) Scavenger-Mutant | -4/Factory Scavenger-Mutant | -3/Research Hacker-Mutant | -3/Testing Wizard-Tank | -2/Research Resources | -11 -10 -10 -9 -9 -7 -6 -6 -6 -6 -6 -5 -5 -5 -5 -5 -5 -5 -4 -3 -3 -2 ----------- Run | Yrd Mat Min Mat Min Zio Pro Fac Gar Fac DSF Fac Gar Fac Ext Cet Arc Hub Fac Res Tes Res Matter Collected 5607 | 236 54 20 106 . 91 138 217 600 10 191 260 1075 164 413 100 93 148 147 118 1065 361 Remotely . | . . . . . . . . . . . . . . . . . . . . . . Salvage Created 10525 | . 306 . 294 . . 310 742 1223 . 136 207 1249 187 1427 160 67 215 55 242 2142 1563 Parts 451 | . 17 . 20 . . 10 18 24 . 7 10 60 11 73 7 2 9 3 8 121 51 Haulers Intercepted 8 | . 2 . 2 . . . 1 . . . . . . . . . 1 . . 1 1 Recyclers Shooed 2 | . . . . . . . . . . . 1 . . 1 . . . . . . . Parts Field Recycled . | . . . . . . . . . . . . . . . . . . . . . . Retrieved Matter . | . . . . . . . . . . . . . . . . . . . . . . Parts Self-Destructed . | . . . . . . . . . . . . . . . . . . . . . . Prevented . | . . . . . . . . . . . . . . . . . . . . . . Parts Restored . | . . . . . . . . . . . . . . . . . . . . . . Kills | -11 -10 -10 -9 -9 -7 -6 -6 -6 -6 -6 -5 -5 -5 -5 -5 -5 -5 -4 -3 -3 -2 ------- Run | Yrd Mat Min Mat Min Zio Pro Fac Gar Fac DSF Fac Gar Fac Ext Cet Arc Hub Fac Res Tes Res Combat Hostiles Destroyed 184 | . 5 . 2 . . 6 10 24 . 2 4 32 4 25 2 1 3 1 3 32 28 Melee 16 | . . . . . . . . . . . . 8 . 2 . . . . . 5 1 Guns 55 | . 5 . 1 . . 5 8 16 . . 1 . . . . . 2 1 1 13 2 Cannons 91 | . . . 1 . . . . 2 . 2 3 23 4 20 2 1 1 . 2 8 22 AOE 7 | . . . . . . . 1 . . . . . . . . . . . . 6 . Classes Destroyed 19 | . 3 . 6 . . 1 3 2 . 1 . . . 1 . . . . . 2 . Worker 10 | . . . 1 . . . . . . . . . . . . . 1 . . 6 2 Builder 8 | . . . 1 . . . . . . . . . . 2 . . . . . 4 1 Tunneler 1 | . . . . . . . . . . . . . . 1 . . . . . . . Hauler 8 | . 2 . 2 . . . 1 . . . . . . . . . 1 . . 1 1 Recycler 3 | . . . . . . . 1 . . . . . . 1 . . . . . 1 . Mechanic 2 | . . . 1 . . . . . . . . . . . . . . . . 1 . Operator 2 | . . . 1 . . . . . . . . . . . . . . . . 1 . Watcher 7 | . . . 1 . . . . . . . 1 1 2 2 . . . . . . . Swarmer 45 | . 2 . . . . 2 2 11 . . 1 10 . 7 . . 2 . . 3 5 Grunt 50 | . 3 . 1 . . 2 5 8 . . 2 4 1 9 . . . . 2 6 7 Brawler 4 | . . . . . . . . 1 . . . 2 . 1 . . . . . . . Duelist 5 | . . . . . . . 1 . . . . 2 1 1 . . . . . . . Sentry 19 | . . . 1 . . 1 1 . . . . 9 . 4 . 1 . . 1 . 1 Hunter 20 | . . . . . . 1 . 2 . 1 1 3 . 1 . . . . . 6 5 Programmer 32 | . . . . . . . 1 1 . . . 1 2 . . . 1 1 . 15 10 Heavy 1 | . . . . . . . . . . 1 . . . . . . . . . . . Behemoth 4 | . . . . . . . . 1 . . . 1 . 2 . . . . . . . Cetus Guard 2 | . . . . . . . . . . . . . . . 2 . . . . . . Striker 1 | . . . . . . . . . . . . . . . . . . . . 1 . Alpha 7 1 | . . . . . . . . . . . . . . . . . . . . 1 . Best Kill Streak 12 | . 2 . 5 . . 3 3 6 . 1 2 5 2 6 2 1 2 1 2 8 12 Combat Bots Only 12 | . 2 . 1 . . 3 3 6 . 1 2 5 2 3 2 1 2 1 2 7 12 Max Kills in Single Turn 4 | . 1 . 2 . . 1 1 2 . 1 1 1 1 1 1 1 1 1 1 4 1 Gunslinging 1 | . . . . . . . . 1 . . . . . . . . . . . . . Exploded 2 | . . . . . . . 1 . . . . . . . . . . . . 2 . Melee 1 | . . . . . . . . . . . . 1 . 1 . . . . . 1 1 Uniques/NPCs Destroyed . | . . . . . . . . . . . . . . . . . . . . . . Combat | -11 -10 -10 -9 -9 -7 -6 -6 -6 -6 -6 -5 -5 -5 -5 -5 -5 -5 -4 -3 -3 -2 -------- Run | Yrd Mat Min Mat Min Zio Pro Fac Gar Fac DSF Fac Gar Fac Ext Cet Arc Hub Fac Res Tes Res Hostile Shots Fired 2239 | . 15 . 8 . . 106 77 156 . 28 20 302 18 139 39 6 13 24 13 514 761 Missed 604 | . 6 . 3 . . 29 37 40 . 8 2 53 6 34 16 3 5 7 2 135 218 Hits 1635 | . 9 . 5 . . 77 40 116 . 20 18 249 12 105 23 3 8 17 11 379 543 Melee 34 | . . . . . . . . 2 . . . 18 . 7 . . . . . 7 . Projectile 1601 | . 9 . 5 . . 77 40 114 . 20 18 231 12 98 23 3 8 17 11 372 543 AOE 1 | . . . . . . . . . . . 1 . . . . . . . . . . Critical Strikes 78 | . . . . . . 1 . 3 . . 1 19 1 5 2 . . . . 25 21 Actively Blocked 2 | . . . . . . . . . . . . 2 . . . . . . . . . Part Disruptions 5 | . . . . . . . . . . . 3 . . . . . . . . 2 . Damage Taken 19175 | . 71 . 37 . . 726 477 1363 . 369 309 3088 149 1543 360 54 87 256 182 4218 5886 Core 2703 | . . . . . . 116 50 30 . 13 . 393 . 132 15 . . 28 13 448 1465 Absorbed by Shields 1151 | . . . . . . . . 59 . . . 373 . 7 62 . . . . . 650 Redirected to Shielding 150 | . . . . . . . . . . . . 145 . 5 . . . . . . . Ignored by Resistances 15567 | . 45 . 23 . . 443 289 843 . 213 162 2052 85 897 249 31 51 155 107 4245 5677 Regen/Repaired (Parts) 63 | . . . . . . . . . . . . . . . . . . . . . 63 Core Remaining (%) 81 | 100 . 100 . . . 71 . . . 89 . . . . . . 46 97 . 64 . Volleys Fired 669 | . 16 3 12 . 1 16 36 83 . 13 13 68 17 100 28 8 5 4 8 98 140 Largest 3 | . 2 2 2 . 2 2 2 2 . 2 2 2 1 1 1 1 2 1 2 3 3 Hottest 313 | . 80 80 136 . 110 110 140 170 . 88 141 108 54 90 90 240 161 88 91 313 309 Shots Fired 1019 | . 32 6 24 . 3 33 72 164 . 26 21 102 17 102 29 8 10 4 11 193 162 Gun 465 | . 32 5 12 . 3 33 72 113 . . 7 8 . . 11 3 5 4 3 131 23 Cannon 547 | . . 1 12 . . . . 51 . 26 14 94 17 102 18 5 5 . 8 55 139 Launcher . | . . . . . . . . . . . . . . . . . . . . . . Special 7 | . . . . . . . . . . . . . . . . . . . . 7 . Kinetic 340 | . . 1 . . . . . 51 . 26 8 93 17 25 10 . . . 11 98 . Thermal 532 | . . . 20 . 3 33 72 108 . . 2 . . 77 19 3 5 4 . 24 162 Explosive . | . . . . . . . . . . . . . . . . . . . . . . Electromagnetic 99 | . 32 5 4 . . . . 5 . . 6 1 . . . 5 5 . . 36 . Phasic 41 | . . . . . . . . . . . 5 8 . . . . . . . 28 . Robot Hit Streak 44 | . 13 6 9 . . 20 24 31 . 5 13 44 9 29 20 10 7 11 7 35 29 Robot Miss Streak 5 | . 1 . 1 . 1 1 2 1 . 5 1 1 2 1 1 . 1 . 1 2 2 Penetration Max 2 | . . . . . . . . . . . . . . . 1 . . . 1 2 . Secondary Targets 16 | . . . . . . 2 2 5 . . . . . . . . . . . 7 . Max Gunslinging Chain 1 | . . . . . . 1 1 1 . . . . . . . . . . . 1 . Shots Hit Robots 905 | . 25 4 16 . . 29 62 141 . 13 17 111 15 101 22 8 7 4 8 175 147 Core Hits 379 | . 12 1 10 . . 11 26 56 . 5 7 46 7 45 11 2 6 2 5 73 54 Critical Kills 14 | . . . . . . . . 1 . 1 2 . . 1 . . . . 2 4 3 Critical Parts Destroyed 27 | . . . . . . . . 5 . 3 3 . . . 1 . . . 5 10 . Critical Strikes 92 | . . . . . . 2 8 30 . 4 5 5 . 4 1 . . . 7 19 7 Burn 33 | . . . . . . 2 8 20 . . . . . . . . . . . . 3 Meltdown 4 | . . . . . . . . . . . . . . 1 . . . . . . 3 Destroy 41 | . . . . . . . . 10 . 4 5 . . . 1 . . . 7 14 . Blast 3 | . . . . . . . . . . . . 2 . 1 . . . . . . . Corrupt 1 | . . . . . . . . . . . . . . . . . . . . 1 . Sever 2 | . . . . . . . . . . . . . . . . . . . . 1 1 Impale 5 | . . . . . . . . . . . . 3 . 2 . . . . . . . Intensify 3 | . . . . . . . . . . . . . . . . . . . . 3 . Melee Attacks 103 | . . . . . . . . 3 . . . 35 . 21 . . . . . 37 7 Impact . | . . . . . . . . . . . . . . . . . . . . . . Slashing 44 | . . . . . . . . . . . . . . . . . . . . 37 7 Piercing 59 | . . . . . . . . 3 . . . 35 . 21 . . . . . . . Sneak Attacks 7 | . . . . . . . . . . . . . . 2 . . . . . 4 1 Combat Hostiles . | . . . . . . . . . . . . . . . . . . . . . . Follow-up Attacks 8 | . . . . . . . . . . . . . . . . . . . . 8 . Damage Inflicted 30928 | . 305 64 371 . . 509 1164 2771 6 310 439 4163 641 3225 639 279 255 141 228 9289 6129 Guns 8270 | . 305 53 142 . . 509 1164 1793 . . 121 231 . . 140 133 120 141 83 2880 455 Cannons 16697 | . . . 225 . . . . 850 . 310 285 2872 635 2875 499 146 96 . 145 2450 5309 Explosions 2329 | . . . . . . . . . . . 33 . . . . . . . . 2296 . Melee 3566 | . . . . . . . . 128 . . . 1060 . 350 . . . . . 1663 365 Ramming 66 | . . 11 4 . . . . . 6 . . . 6 . . . 39 . . . . Kinetic 8086 | . . . . . . . . 850 . 310 189 2858 635 964 107 . . . 228 1945 . Thermal 16763 | . . . 325 . . 509 1164 1698 . . 55 . . 1911 532 133 120 141 . 4411 5764 Explosive 41 | . . . . . . . . . . . . . . . . . . . . 41 . Electromagnetic 1121 | . 305 53 42 . . . . 95 . . 129 14 . . . 146 96 . . 241 . Impact . | . . . . . . . . . . . . . . . . . . . . . . Slashing 2028 | . . . . . . . . . . . . . . . . . . . . 1663 365 Piercing 1538 | . . . . . . . . 128 . . . 1060 . 350 . . . . . . . Phasic 1285 | . . . . . . . . . . . 66 231 . . . . . . . 988 . Highest Corruption 14 | . . . 3 3 3 1 . . . . 1 1 1 1 2 2 2 2 . 14 5 Average Corruption 2 | . . . 3 3 3 1 . . . . 1 1 1 1 1 2 2 1 . 9 3 Corruption Purged . | . . . . . . . . . . . . . . . . . . . . . . Corruption Blocked . | . . . . . . . . . . . . . . . . . . . . . . Effects 186 | . . . 2 2 5 19 . . . . 5 9 3 23 8 2 14 3 . 68 23 Message Errors 46 | . . . . . . 4 . . . . 3 1 1 2 4 . 4 1 . 17 9 Matter Fused 58 | . . . 2 1 3 7 . . . . 1 4 . 8 . 1 7 2 . 18 4 Heat Flow Errors 16 | . . . . . . 2 . . . . . 1 . . . . 2 . . 10 1 Energy Discharges 19 | . . . . 1 1 1 . . . . . 1 2 5 . . 1 . . 6 1 Parts Rejected 4 | . . . . . . . . . . . . 1 . . . . . . . 2 1 Parts Fused 2 | . . . . . . . . . . . . . . 1 . . . . . 1 . Data Loss (minor) 21 | . . . . . . 2 . . . . 1 1 . 3 2 1 . . . 7 4 Data Loss (major) 7 | . . . . . . 1 . . . . . . . 2 . . . . . 2 2 Misfires 6 | . . . . . 1 1 . . . . . . . 2 1 . . . . 1 . Alerts 5 | . . . . . . 1 . . . . . . . . 1 . . . . 3 . Weapon Failures 2 | . . . . . . . . . . . . . . . . . . . . 1 1 Overload Shots 2 | . . . . . . . . . . . . . . . . 2 . . . . . Overflow Damage 1628 | . . . . . . . . . . . . 87 13 119 . . 21 . . 1197 191 Projectiles 1073 | . . . . . . . . . . . . 87 13 119 . . 6 . . 665 183 Explosions 347 | . . . . . . . . . . . . . . . . . . . . 347 . Melee 208 | . . . . . . . . . . . . . . . . . 15 . . 185 8 Knockbacks 30 | . . . . . . . . 1 . 4 . 11 9 1 . . . . 1 3 . Impact . | . . . . . . . . . . . . . . . . . . . . . . Kinetic 30 | . . . . . . . . 1 . 4 . 11 9 1 . . . . 1 3 . Secondary . | . . . . . . . . . . . . . . . . . . . . . . Self-Inflicted Damage 189 | . . . . . . . . . . . . . . 72 . . . . . 117 . Shots 4 | . . . . . . . . . . . . . . 1 . . . . . 3 . Rammed 3 | . . . . . . . . . . . . . 1 . . . 2 . . . . Targets Rammed 11 | . . 6 1 . . . . . 1 . . . 1 . . . 2 . . . . Kicked 8 | . . 6 1 . . . . . 1 . . . . . . . . . . . . Crushed . | . . . . . . . . . . . . . . . . . . . . . . Highest Temperature 495 | . 213 36 198 . 39 404 411 382 . 96 63 451 . 495 130 316 215 . . 283 460 Average Temperature 116 | . 69 18 50 . 19 164 113 74 . 34 19 223 . 108 55 135 66 . . 77 199 Received Heat Transfer 4186 | . 57 . 24 . . 378 174 402 . 27 54 793 90 550 27 9 . 36 45 346 1174 Effects 34 | . . . . . . 3 2 2 . . . 21 . 1 . 1 . . . . 4 Shutdowns 7 | . . . . . . . . . . . . 6 . 1 . . . . . . . Energy Bleed 6 | . . . . . . 1 1 . . . . 3 . . . . . . . . 1 Interference 5 | . . . . . . . . . . . . 5 . . . . . . . . . Matter Decay 5 | . . . . . . 1 1 . . . . 1 . . . 1 . . . . 1 Short Circuit 3 | . . . . . . . . . . . . 1 . . . . . . . . 2 Damage (minor) 4 | . . . . . . 1 . 2 . . . 1 . . . . . . . . . Damage (major) 4 | . . . . . . . . . . . . 4 . . . . . . . . . Siege Activations . | . . . . . . . . . . . . . . . . . . . . . . Martial Activations . | . . . . . . . . . . . . . . . . . . . . . . Shielding Activations . | . . . . . . . . . . . . . . . . . . . . . . Robots Disrupted 1 | . . . . . . . . . . . . . . . . . . . . 1 . Combat Hostiles 1 | . . . . . . . . . . . . . . . . . . . . 1 . Robots Corrupted . | . . . . . . . . . . . . . . . . . . . . . . Combat Hostiles . | . . . . . . . . . . . . . . . . . . . . . . Parts Fried 9 | . 2 . . . . . . . . . 2 . . . 1 . 1 . . 3 . Impact Corruptions 1 | . . . . . . . . . . . . . . . . . 1 . . . . Robots Melted 13 | . . . . . . 1 2 6 . . . . . 1 . . . . . . 3 Combat Hostiles 12 | . . . . . . 1 1 6 . . . . . 1 . . . . . . 3 Parts Melted 64 | . . . 1 . . 1 13 24 . . . . . 11 . . 1 1 . . 12 Heat Transferred 23686 | . . . 592 . . 1147 3289 6377 . . 74 . . 2590 685 137 148 200 . 2897 5550 Parts Sabotaged . | . . . . . . . . . . . . . . . . . . . . . . Parts Stolen . | . . . . . . . . . . . . . . . . . . . . . . Parts Stripped . | . . . . . . . . . . . . . . . . . . . . . . Power Chain Reactions 2 | . . . . . . . . . . . 1 . . . . . . . . 1 . Alert | -11 -10 -10 -9 -9 -7 -6 -6 -6 -6 -6 -5 -5 -5 -5 -5 -5 -5 -4 -3 -3 -2 ------- Run | Yrd Mat Min Mat Min Zio Pro Fac Gar Fac DSF Fac Gar Fac Ext Cet Arc Hub Fac Res Tes Res Maximum Alert Level 3 | . . . . . . . . 3 1 1 . 3 1 . 1 . . . 1 . 1 Low Security (%) 83 | 100 100 100 100 100 . . 100 17 . 12 100 28 41 100 92 100 100 100 87 100 97 Level 1 7 | . . . . . . . . 11 100 87 . 33 58 . 7 . . . 12 . 2 Level 2 5 | . . . . . . . . 51 . . . 16 . . . . . . . . . Level 3 3 | . . . . . . . . 19 . . . 22 . . . . . . . . . Level 4 . | . . . . . . . . . . . . . . . . . . . . . . Level 5 . | . . . . . . . . . . . . . . . . . . . . . . High Security . | . . . . . . . . . . . . . . . . . . . . . . Max Security . | . . . . . . . . . . . . . . . . . . . . . . Sterilizations 1 | . . . . . . . . . . 1 . . . . . . . . . . . Peak Influence 958 | . 50 36 68 1 . . 55 813 316 383 164 958 393 105 240 130 131 126 229 158 206 Initial 373 | . . . 9 1 . . . . 316 150 148 . 373 31 . 42 . . 13 90 1 Average 104 | . 3 . 21 . . . 7 484 298 290 49 401 232 8 66 47 25 26 64 39 45 Influence Increases 8872 | . 149 51 199 . . 304 288 883 8 243 331 1118 120 937 460 118 399 371 274 1431 1188 Destroy 0b10 Robot/C 5560 | . 100 40 120 . . 260 200 540 . 180 180 660 80 660 300 80 200 200 160 860 740 Destroy 0b10 Robot/NC 320 | . 10 . 35 . . . 10 15 . . 20 10 10 40 10 . 20 5 . 85 50 Destroy Leader 892 | . 24 10 36 . . 30 52 30 . 40 56 50 24 114 20 . 46 42 30 128 160 Allied During Kill 466 | . . 1 1 . . 14 . 7 . 9 8 6 . 16 75 24 78 70 57 55 45 Successful Hack 81 | . 15 . 6 . . . 26 . 3 . 1 . 2 15 7 . . . . . 6 Disable Machine 100 | . . . . . . . . 4 . 4 16 . . 4 8 8 8 . . 44 4 Anti-Garrison Action 500 | . . . . . . . . 250 . . . 250 . . . . . . . . . Destroy Structure 728 | . . . 1 . . . . 22 5 10 50 37 4 58 40 6 32 54 12 244 153 Partial Spotted 30 | . . . . . . . . . . . . 30 . . . . . . . . . Lose Combat Pursuer 195 | . . . . . . . . 15 . . . 75 . 30 . . 15 . 15 15 30 Influence Decreases 8801 | . 149 15 229 6 . 304 285 73 542 139 714 160 990 1025 310 268 399 335 96 1639 1123 Entered New Map 1798 | . . . 27 5 . . . 3 497 129 235 . 585 57 . 108 . . 23 124 5 Time Decay 5898 | . 149 15 182 1 . 294 285 . 45 . 428 . 405 868 288 160 357 315 73 1285 748 Lost Part 605 | . . . . . . 10 . 70 . 10 20 120 . 15 . . . . . 110 250 Lost Ally 500 | . . . 20 . . . . . . . 31 40 . 85 22 . 42 20 . 120 120 Squads Dispatched 39 | . 1 . 2 . . 1 5 . . 1 2 . . 4 2 . 1 2 . 11 7 Investigation 11 | . 1 . 1 . . . 1 . . . 1 . . 2 2 . . 1 . 1 1 Extermination 12 | . . . . . . . 1 . . . 1 . . . . . 1 1 . 5 3 Reinforcement 12 | . . . 1 . . . . . . 1 . . . 2 . . . . . 5 3 Assault 1 | . . . . . . 1 . . . . . . . . . . . . . . . Garrison 3 | . . . . . . . 3 . . . . . . . . . . . . . . Intercept . | . . . . . . . . . . . . . . . . . . . . . . Searches Triggered . | . . . . . . . . . . . . . . . . . . . . . . Construction Impeded 3 | . . . . . . . . . . . . . . 1 . . . . . 1 1 Haulers Reinforced 3 | . . . . . . . . . . . . . . . . . . . . 1 2 Active Scanning Responses . | . . . . . . . . . . . . . . . . . . . . . . Cargo Convoy Interrupts 1 | . . . . . . . . . . . . . . . . . . . . . 1 Stealth | -11 -10 -10 -9 -9 -7 -6 -6 -6 -6 -6 -5 -5 -5 -5 -5 -5 -5 -4 -3 -3 -2 --------- Run | Yrd Mat Min Mat Min Zio Pro Fac Gar Fac DSF Fac Gar Fac Ext Cet Arc Hub Fac Res Tes Res Distress Signals 10 | . . . . . . . . . . . . 3 . 1 2 . . . . 2 2 Communications Jammed . | . . . . . . . . . . . . . . . . . . . . . . Distress Signals . | . . . . . . . . . . . . . . . . . . . . . . Times Spotted 326 | . 5 1 9 . . 13 11 30 . 9 15 44 6 37 12 4 10 11 8 43 58 Peak Tracking Total 13 | . 2 1 3 . . 5 3 6 . 3 3 7 2 4 5 2 4 3 6 5 13 Tactical Retreats 12 | . . . . . . . . 1 . . . 5 . 2 . . 1 . 1 1 1 Traps | -11 -10 -10 -9 -9 -7 -6 -6 -6 -6 -6 -5 -5 -5 -5 -5 -5 -5 -4 -3 -3 -2 ------- Run | Yrd Mat Min Mat Min Zio Pro Fac Gar Fac DSF Fac Gar Fac Ext Cet Arc Hub Fac Res Tes Res Traps Triggered 16 | . . . . . . . 1 8 . . . 2 . . . . . 1 . 3 1 Indirectly . | . . . . . . . . . . . . . . . . . . . . . . Trap Hack Attempts . | . . . . . . . . . . . . . . . . . . . . . . Triggered . | . . . . . . . . . . . . . . . . . . . . . . Disarmed . | . . . . . . . . . . . . . . . . . . . . . . Reprogrammed . | . . . . . . . . . . . . . . . . . . . . . . Reused . | . . . . . . . . . . . . . . . . . . . . . . Traps Extracted . | . . . . . . . . . . . . . . . . . . . . . . Installed . | . . . . . . . . . . . . . . . . . . . . . . Triggered . | . . . . . . . . . . . . . . . . . . . . . . Machines | -11 -10 -10 -9 -9 -7 -6 -6 -6 -6 -6 -5 -5 -5 -5 -5 -5 -5 -4 -3 -3 -2 ---------- Run | Yrd Mat Min Mat Min Zio Pro Fac Gar Fac DSF Fac Gar Fac Ext Cet Arc Hub Fac Res Tes Res Machines Disabled 37 | . . . . . . 1 . 4 . 1 4 3 . 2 5 2 2 . . 12 1 Max in Single Turn 2 | . . . . . . . . 1 . . 1 1 . 1 1 . . . . 2 1 Garrison Access 1 | . . . . . . . . . . . . . . . . . . . . 1 . Garrison Relay 6 | . . . . . . . . 3 . . . 3 . . . . . . . . . Energy Cycler 1 | . . . . . . . . . . . . . . 1 . . . . . . . Machines Repaired . | . . . . . . . . . . . . . . . . . . . . . . Machines Dismantled . | . . . . . . . . . . . . . . . . . . . . . . Machines Sabotaged . | . . . . . . . . . . . . . . . . . . . . . . Overloaded Fab Kills . | . . . . . . . . . . . . . . . . . . . . . . Hacking | -11 -10 -10 -9 -9 -7 -6 -6 -6 -6 -6 -5 -5 -5 -5 -5 -5 -5 -4 -3 -3 -2 --------- Run | Yrd Mat Min Mat Min Zio Pro Fac Gar Fac DSF Fac Gar Fac Ext Cet Arc Hub Fac Res Tes Res Machines Accessed 33 | . 8 . 1 . . . 2 . 1 . 3 1 2 6 3 . . . . 2 4 Terminals 21 | . 7 . 1 . . . . . 1 . 1 1 1 6 3 . . . . . . Fabricators 3 | . . . . . . . . . . . 1 . . . . . . . . . 2 Repair Stations 1 | . . . . . . . . . . . . . . . . . . . . . 1 Recycling Units 1 | . 1 . . . . . . . . . . . . . . . . . . . . Scanalyzers 4 | . . . . . . . 1 . . . . . 1 . . . . . . 1 1 Garrison Access 3 | . . . . . . . 1 . . . 1 . . . . . . . . 1 . Total Hacks 81 | . 14 . 4 . . . 6 . 1 . 6 1 6 14 7 . . . . 10 12 Successful 49 | . 8 . 1 . . . 2 . 1 . 3 1 5 5 6 . . . . 8 9 Failed 32 | . 6 . 3 . . . 4 . . . 3 . 1 9 1 . . . . 2 3 Catastrophic 3 | . 1 . . . . . 1 . . . . . . . 1 . . . . . . Database Lockouts . | . . . . . . . . . . . . . . . . . . . . . . Manual 73 | . . . . . . . 4 3 . . 10 7 5 10 1 . 12 4 . 13 4 Terminals 41 | . 12 . 4 . . . . . 1 . 1 1 1 14 7 . . . . . . Fabricators 10 | . . . . . . . . . . . 4 . . . . . . . . . 6 Repair Stations 3 | . . . . . . . . . . . . . . . . . . . . . 3 Recycling Units 2 | . 2 . . . . . . . . . . . . . . . . . . . . Scanalyzers 18 | . . . . . . . 3 . . . . . 5 . . . . . . 7 3 Garrison Access 7 | . . . . . . . 3 . . . 1 . . . . . . . . 3 . Terminal Hacks 23 | . 7 . 1 . . . . . 1 . 1 1 1 5 6 . . . . . . Record 5 | . . . . . . . . . . . . . . . 5 . . . . . . Open Door 8 | . . . . . . . . . . . . 1 1 5 1 . . . . . . Open DSF 2 | . . . . . . . . . 1 . 1 . . . . . . . . . . Level Access Points 1 | . . . 1 . . . . . . . . . . . . . . . . . . Branch Access Points 1 | . 1 . . . . . . . . . . . . . . . . . . . . Locate Traps 1 | . 1 . . . . . . . . . . . . . . . . . . . . Registered Components 1 | . 1 . . . . . . . . . . . . . . . . . . . . Registered Prototypes 1 | . 1 . . . . . . . . . . . . . . . . . . . . Zone Layout 3 | . 3 . . . . . . . . . . . . . . . . . . . . Fabricator Hacks 5 | . . . . . . . . . . . 1 . . . . . . . . . 4 Load Schematic 3 | . . . . . . . . . . . 1 . . . . . . . . . 2 Build 2 | . . . . . . . . . . . . . . . . . . . . . 2 Repair Station Hacks 2 | . . . . . . . . . . . . . . . . . . . . . 2 Scan Component 1 | . . . . . . . . . . . . . . . . . . . . . 1 Repair 1 | . . . . . . . . . . . . . . . . . . . . . 1 Recycling Unit Hacks 1 | . 1 . . . . . . . . . . . . . . . . . . . . Retrieve Components 1 | . 1 . . . . . . . . . . . . . . . . . . . . Scanalyzer 15 | . . . . . . . 1 . . . . . 4 . . . . . . 7 3 Insert Component 3 | . . . . . . . . . . . . . 2 . . . . . . 1 . Analyze 2 | . . . . . . . . . . . . . 1 . . . . . . 1 . Retrieve Study 10 | . . . . . . . 1 . . . . . 1 . . . . . . 5 3 Garrison Access Hacks 3 | . . . . . . . 1 . . . 1 . . . . . . . . 1 . Unlock Access 2 | . . . . . . . 1 . . . 1 . . . . . . . . . . Seal Access 1 | . . . . . . . . . . . . . . . . . . . . 1 . Unauthorized Hacks . | . . . . . . . . . . . . . . . . . . . . . . Terminals . | . . . . . . . . . . . . . . . . . . . . . . Fabricators . | . . . . . . . . . . . . . . . . . . . . . . Repair Stations . | . . . . . . . . . . . . . . . . . . . . . . Recycling Units . | . . . . . . . . . . . . . . . . . . . . . . Scanalyzers . | . . . . . . . . . . . . . . . . . . . . . . Garrison Access . | . . . . . . . . . . . . . . . . . . . . . . Data Cores Recovered 4 | . . . 1 . . . . . . . 1 . . 1 . . . . . 1 . Used . | . . . . . . . . . . . . . . . . . . . . . . Hacking Detections 24 | . 5 . 1 . . . 2 . . . 2 1 1 3 4 . . . . 1 4 Full Trace Events 8 | . 1 . 1 . . . 1 . . . 1 . . 2 2 . . . . . . Feedback Events . | . . . . . . . . . . . . . . . . . . . . . . Feedback Blocked . | . . . . . . . . . . . . . . . . . . . . . . Robot Schematics Acquired 9 | . . . . . 4 . . . . . . . . . . . . . . 5 . Robots Built 2 | . . . . . . . . . . . . . . . . . . . . . 2 Authchips . | . . . . . . . . . . . . . . . . . . . . . . Time 74 | . . . . . . . . . . . . . . . . . . . . . 74 Total Robot Build Rating 18 | . . . . . . . . . . . . . . . . . . . . . 18 Part Schematics Acquired 56 | . . . . . 14 . . . . . 14 . 1 . . . 12 . . 15 . Parts Built . | . . . . . . . . . . . . . . . . . . . . . . Authchips . | . . . . . . . . . . . . . . . . . . . . . . Time 102 | . . . . . . . . . . . . . . . . . . . . . 102 Total Part Build Rating . | . . . . . . . . . . . . . . . . . . . . . . Part Studies Acquired 10 | . . . . . . . 1 . . . . . 1 . . . . . . 5 3 Parts Repaired 1 | . . . . . . . . . . . . . . . . . . . . . 1 Time 29 | . . . . . . . . . . . . . . . . . . . . . 29 Parts Recycled . | . . . . . . . . . . . . . . . . . . . . . . Recycled Matter . | . . . . . . . . . . . . . . . . . . . . . . Retrieved Matter . | . . . . . . . . . . . . . . . . . . . . . . Retrieved Components 3 | . 3 . . . . . . . . . . . . . . . . . . . . Parts Scanalyzed 2 | . . . . . . . . . . . . . 1 . . . . . . 1 . Part Schematics Acquired 1 | . . . . . . . . . . . . . 1 . . . . . . . . Parts Damaged . | . . . . . . . . . . . . . . . . . . . . . . Bothacking | -11 -10 -10 -9 -9 -7 -6 -6 -6 -6 -6 -5 -5 -5 -5 -5 -5 -5 -4 -3 -3 -2 ------------ Run | Yrd Mat Min Mat Min Zio Pro Fac Gar Fac DSF Fac Gar Fac Ext Cet Arc Hub Fac Res Tes Res Used RIF Installer . | . . . . . . . . . . . . . . . . . . . . . . Robots Hacked . | . . . . . . . . . . . . . . . . . . . . . . Non-combat . | . . . . . . . . . . . . . . . . . . . . . . Combat . | . . . . . . . . . . . . . . . . . . . . . . Robot Hacks Applied . | . . . . . . . . . . . . . . . . . . . . . . Relay Couplers Released 24 | . . . . . . . . 12 . . . 12 . . . . . . . . . Machine Destruction 24 | . . . . . . . . 12 . . . 12 . . . . . . . . . Fabnet Peak Effective % . | . . . . . . . . . . . . . . . . . . . . . . Robots Rewired 2 | . . . . . . 1 . 1 . . . . . . . . . . . . . Allies Hacked 5 | . . . . . . . . . . . . . . . . . 1 1 . 1 2 Hacks Repelled . | . . . . . . . . . . . . . . . . . . . . . . Allies | -11 -10 -10 -9 -9 -7 -6 -6 -6 -6 -6 -5 -5 -5 -5 -5 -5 -5 -4 -3 -3 -2 -------- Run | Yrd Mat Min Mat Min Zio Pro Fac Gar Fac DSF Fac Gar Fac Ext Cet Arc Hub Fac Res Tes Res Total Allies 57 | . . 2 . . 4 1 1 1 . . 7 2 1 14 5 . 3 6 . 2 8 Largest Group 8 | . . 2 2 1 4 5 1 1 1 1 4 3 1 5 6 5 5 8 7 7 5 Highest-Rated Group 809 | . . 42 42 31 155 184 28 148 148 148 340 210 27 267 623 520 549 809 713 703 477 Highest-Rated Ally 165 | . . 31 31 31 41 41 28 148 148 148 148 70 27 159 159 136 165 156 123 113 115 Zionite Dispatches 13 | . . . . . . . 1 . . . 3 . 1 3 . . 1 2 . . 2 Heavy 4 | . . . . . . . . . . . 2 . . 1 . . . 1 . . . Light 3 | . . . . . . . . . . . 1 . . . . . . 1 . . 1 Recon 1 | . . . . . . . . . . . . . . 1 . . . . . . . Hacker 1 | . . . . . . . . . . . . . . . . . . . . . 1 Hero 1 | . . . . . . . . . . . . . . . . . 1 . . . . Infowar Resupply 2 | . . . . . . . 1 . . . . . . 1 . . . . . . . Hacking Resupply 1 | . . . . . . . . . . . . . 1 . . . . . . . . Total Orders 4 | . . . . . . . 1 . . . . . 1 2 . . . . . . . DROP 4 | . . . . . . . 1 . . . . . 1 2 . . . . . . . Ally Attacks 592 | . . 7 18 . . 56 . 7 . 26 29 33 . 71 84 31 38 39 27 57 69 Total Damage 20494 | . . 103 210 . . 1366 . 239 . 507 871 846 . 1528 3231 1079 1797 1571 766 2560 3820 Kills 117 | . . 2 4 . . 7 . 3 . 7 9 1 . 10 15 3 9 10 5 16 16 Allies Corrupted 3 | . . . . . . . . . . . . . . . . . 1 . . . 2 Allies Melted 2 | . . . . . . . . . . . . . . 1 . . 1 . . . . Intel | -11 -10 -10 -9 -9 -7 -6 -6 -6 -6 -6 -5 -5 -5 -5 -5 -5 -5 -4 -3 -3 -2 ------- Run | Yrd Mat Min Mat Min Zio Pro Fac Gar Fac DSF Fac Gar Fac Ext Cet Arc Hub Fac Res Tes Res Active Infowar (turns) 22467 | . . 1446 335 68 2830 2289 1284 1672 67 394 791 863 543 3441 651 317 883 785 189 2421 1198 Sensors 9804 | . . 1446 335 68 2548 2289 1281 1161 67 394 215 . . . . . . . . . . Traps 1 | . . . . . . . . 1 . . . . . . . . . . . . . Machine Analysis 20826 | . . . 140 68 2830 2289 1284 1672 67 394 791 863 543 3441 651 317 883 785 189 2421 1198 Robot Analysis Total . | . . . . . . . . . . . . . . . . . . . . . . Derelict Logs Recovered 3 | . . . . . 1 2 . . . . . . . . . . . . . . . Drone Launches 4 | . . . . . 1 . 1 . . . . . . 2 . . . . . . . Drone Recoveries 1 | . . . . . . 1 . . . . . . . . . . . . . . . Zionite Intel Received 10 | . . . . . . . . 1 . . 1 2 . 1 . . 2 . . 3 . Branch Access 1 | . . . . . . . . . . . . 1 . . . . . . . . . Emergency Access 2 | . . . . . . . . 1 . . . . . 1 . . . . . . . Prototype Stockpiles 2 | . . . . . . . . . . . . . . . . . 1 . . 1 . Component Schematics 2 | . . . . . . . . . . . 1 . . . . . 1 . . . . Unaware Analyses 1 | . . . . . . . . . . . . . . . . . . . . 1 . Active Terminals 2 | . . . . . . . . . . . . 1 . . . . . . . 1 . Exploration | -11 -10 -10 -9 -9 -7 -6 -6 -6 -6 -6 -5 -5 -5 -5 -5 -5 -5 -4 -3 -3 -2 ------------- Run | Yrd Mat Min Mat Min Zio Pro Fac Gar Fac DSF Fac Gar Fac Ext Cet Arc Hub Fac Res Tes Res Turns Passed 25657 | 57 876 2438 335 68 2830 2289 1284 1672 67 394 791 1768 543 3441 651 317 883 785 189 2652 1327 Spaces Moved 11096 | 51 578 1124 162 43 1306 820 442 600 29 159 363 725 292 1560 300 178 394 425 87 1044 414 Core 32 | 23 . . 4 . . . . . . . . 3 . . . . . . . . 2 Treads 5957 | . . . . . . . . 82 . 98 363 722 292 1560 300 178 394 425 87 1044 412 Legs 5107 | 28 578 1124 158 43 1306 820 442 518 29 61 . . . . . . . . . . . Wheels . | . . . . . . . . . . . . . . . . . . . . . . Hover . | . . . . . . . . . . . . . . . . . . . . . . Flight . | . . . . . . . . . . . . . . . . . . . . . . Fastest Speed 50 | 50 120 120 120 120 120 190 187 114 187 164 164 160 164 165 162 162 162 160 160 158 156 Average Speed 176 | 88 120 120 126 120 190 257 195 198 187 208 191 186 165 173 177 162 163 166 160 182 186 Slowest Speed 1800 | 120 120 120 400 120 330 820 260 470 187 490 325 1800 242 217 217 162 165 225 160 330 1500 Overloaded Moves . | . . . . . . . . . . . . . . . . . . . . . . Propulsion Burnouts . | . . . . . . . . . . . . . . . . . . . . . . Robots Hopped . | . . . . . . . . . . . . . . . . . . . . . . Potential Cave-ins . | . . . . . . . . . . . . . . . . . . . . . . Cave-ins Triggered . | . . . . . . . . . . . . . . . . . . . . . . Exploration Rate (%) 50 | 3 93 105 16 14 90 96 13 66 1 84 14 73 9 96 83 97 38 13 3 95 14 Regions Visited 21 Branch Regions 9 Pre-discovered Areas 1 | . . . . . 1 . . . . . . . . . . . . . . . . Known Exits Taken 17 | 1 1 1 1 . 1 1 1 . 1 . 1 . 1 1 1 1 1 1 1 1 . Unknown Exits Taken 1 | . . . . 1 . . . . . . . . . . . . . . . . . Scrap Searched 5 | . . 1 . . 3 1 . . . . . . . . . . . . . . . Spaces Dug 1 | . . . . . . . . . . . . . . . . . . . . . 1 Terrain Destroyed 180 | . . . . . . . . 2 . 2 3 6 2 33 2 . . . 1 114 15 Melee . | . . . . . . . . . . . . . . . . . . . . . . Projectile 43 | . . . . . . . . 2 . 2 3 6 2 3 2 . . . 1 7 15 AOE 136 | . . . . . . . . . . . . . . 30 . . . . . 106 . Terrain Rammed . | . . . . . . . . . . . . . . . . . . . . . . Walls Destroyed . | . . . . . . . . . . . . . . . . . . . . . . Machines Disabled . | . . . . . . . . . . . . . . . . . . . . . . Actions | -11 -10 -10 -9 -9 -7 -6 -6 -6 -6 -6 -5 -5 -5 -5 -5 -5 -5 -4 -3 -3 -2 --------- Run | Yrd Mat Min Mat Min Zio Pro Fac Gar Fac DSF Fac Gar Fac Ext Cet Arc Hub Fac Res Tes Res Total 15992 | 63 728 2206 270 59 1646 967 791 916 41 198 440 984 334 2155 393 199 621 500 125 1554 802 Wait 3506 | 1 125 1065 67 17 314 118 245 142 12 6 33 93 15 456 51 13 195 48 30 267 193 Move 11073 | 50 577 1123 161 42 1305 819 442 597 28 158 362 723 291 1559 299 177 393 424 86 1043 414 Hop . | . . . . . . . . . . . . . . . . . . . . . . Pick Up 130 | 6 6 4 7 . 12 6 29 18 . 3 4 12 . 1 2 . 2 . . 9 9 Fast Attach 136 | . . . 3 . . . . 5 . 4 10 20 4 7 4 . 8 10 1 48 12 Attach 66 | 6 2 2 5 . 3 3 10 9 . 1 . 6 . 1 2 1 . . . 5 10 Detach 24 | . . 2 5 . 2 . 4 3 . . . 1 . . 1 . . 1 . 2 3 Swap 67 | . 1 1 2 . 3 1 11 9 . 4 4 8 2 3 . . 5 2 . 8 3 Drop 173 | . 1 . 7 . 6 1 14 14 . 9 14 14 4 7 6 . 11 11 . 43 11 Fire 669 | . 16 3 12 . 1 16 36 83 . 13 13 68 17 100 28 8 5 4 8 98 140 Melee 95 | . . . . . . . . 3 . . . 35 . 21 . . . . . 29 7 Ram . | . . . . . . . . . . . . . . . . . . . . . . Kick 8 | . . 6 1 . . . . . 1 . . . . . . . . . . . . Crush 3 | . . . . . . . . . . . . . 1 . . . 2 . . . . Escape Stasis 36 | . . . . . . . . 32 . . . 4 . . . . . . . . . Rewire 6 | . . . . . . 3 . 1 . . . . . . . . . . . 2 . Trap . | . . . . . . . . . . . . . . . . . . . . . . Miscellaneous . | . . . . . . . . . . . . . . . . . . . . . . Route ------- -11/Scrapyard -10/Materials (discovered 5 exits: *Mat x3 / *Min x2) -10/Mines (discovered 3 exits: *Mat x2 / *Sub) -9/Materials (discovered 4 exits: Mat x3 / *Min) -9/Mines (discovered 2 exits: *Mat / [*Zio]) -7/Zion -6/Proximity Caves -6/Factory (discovered 3 exits: Low x2 / Gar) -6/Garrison (discovered 3 exits: *Fac x3) -6/Factory -6/DSF -5/Factory (discovered 2 exits: *Upp / Gar) -5/Garrison (discovered 3 exits: *Fac x3) -5/Factory -5/Extension (discovered 3 exits: *Fac x2 / *Cet) -5/Cetus (discovered 2 exits: *Fac / *Arc) -5/Archives (discovered 3 exits: *Fac / *Hub x2) -5/Hub_04(d) (discovered 2 exits: *Fac x2) -4/Factory (discovered 2 exits: *Res / *Upp) -3/Research -3/Testing -2/Research History --------- Turn | Location | Event 10 | -11/Scrapyard | Identified exit to Materials 10 | -11/Scrapyard | Discovered exit to Materials (range 16) 58 | -11/Scrapyard | Entered Materials 58 | -10/Materials | Evolved 1 slot: Propulsion x1 59 | -10/Materials | Met a group of wandering Federalists 316 | -10/Materials | Identified exit to Mines 332 | -10/Materials | Build established: Hacker-Mutant 362 | -10/Materials | Identified exit to Materials 362 | -10/Materials | Discovered exit to Materials (range 11) 443 | -10/Materials | Discovered exit to Materials (range 15) 858 | -10/Materials | Discovered exit to Materials (range 4) 934 | -10/Materials | Entered Mines 942 | -10/Mines | Discovered exit to Materials (range 13) 946 | -10/Mines | Met a Derelict bent on vengeance 1038 | -10/Mines | Discovered exit to Materials (range 8) 1420 | -10/Mines | Found a damaged Exp. Sensor Array with a note attached 1422 | -10/Mines | Found Prototype Device 1611 | -10/Mines | Found a hidden stash of uninstalled traps 1926 | -10/Mines | Identified Exp. Sensor Array 2197 | -10/Mines | Identified exit to Subcaves 2197 | -10/Mines | Discovered exit to Subcaves (range 7) 3372 | -10/Mines | Entered Materials 3372 | -9/Materials | Accompanied by 2 allies 3372 | -9/Materials | Evolved 2 slots: Utility x2 3377 | -9/Materials | Led the pair of lost Derelicts to an unsafe place 3612 | -9/Materials | Identified exit to Mines 3612 | -9/Materials | Discovered exit to Mines (range 13) 3692 | -9/Materials | Identified exit to Materials 3707 | -9/Materials | Entered Mines 3707 | -9/Mines | Accompanied by 1 ally 3735 | -9/Mines | Discovered exit to Materials (range 10) 3748 | -9/Mines | A Derelict revealed a hidden shortcut to a safe place 3775 | -9/Mines | Entered Zion 3775 | -7/Zion | Accompanied by 1 ally 3825 | -7/Zion | Led the pair of lost Derelicts to a safe place 3900 | -7/Zion | System corruption cleaned by Quarantine Array 4061 | -7/Zion | Identified exit to Proximity Caves 4061 | -7/Zion | Discovered exit to Proximity Caves (range 13) 4092 | -7/Zion | Given the Hacking Drone Bay 4092 | -7/Zion | Found Prototype Device 4093 | -7/Zion | Identified Hacking Drone Bay 4299 | -7/Zion | Learned location of Data Miner (-6) 4305 | -7/Zion | Learned Factory emergency access door positions 4435 | -7/Zion | Given A8's code to call for help 4691 | -7/Zion | Found CR-A16's Pointy Stick 4803 | -7/Zion | Found Prototype Device 4804 | -7/Zion | Identified Mobile Refinery Mk. CCLXVII 5412 | -7/Zion | Met Imprinter 5518 | -7/Zion | Imprinted 5521 | -7/Zion | Declared Zion's savior 6605 | -7/Zion | Entered Proximity Caves 6605 | -6/Proximity Caves | Accompanied by 5 allies 6657 | -6/Proximity Caves | Learned Factory emergency access door positions 6750 | -6/Proximity Caves | Attracted the attention of an 0b10 outpost 6920 | -6/Proximity Caves | Spotted B-75 Beast 6954 | -6/Proximity Caves | Allies destroyed B-75 Beast 7680 | -6/Proximity Caves | Learned Factory emergency access door positions 7693 | -6/Proximity Caves | Identified exit to Factory 7693 | -6/Proximity Caves | Discovered exit to Factory (range 8) 8137 | -6/Proximity Caves | Attracted the attention of an 0b10 checkpoint 8894 | -6/Proximity Caves | Entered Factory 8894 | -6/Factory | Evolved 6 slots: Power x1, Propulsion x3, Utility x2 9476 | -6/Factory | Garrison activated, responded to threat 9977 | -6/Factory | Identified exit to Lower Caves 10042 | -6/Factory | Zion Infowar Resupply teleported in 10162 | -6/Factory | Identified exit to Garrison 10178 | -6/Factory | Entered Garrison 10178 | -6/Garrison | Accompanied by 1 ally 10312 | -6/Garrison | Triggered checkpoint 10328 | -6/Garrison | Garrison Relay disabled 10658 | -6/Garrison | Triggered checkpoint 10705 | -6/Garrison | Retrieved Zion intel report: Emergency Access 10728 | -6/Garrison | Garrison Relay disabled 10815 | -6/Garrison | Identified exit to Factory 10815 | -6/Garrison | Discovered exit to Factory (range 10) 10845 | -6/Garrison | Spotted B-86 Titan 10918 | -6/Garrison | Destroyed B-86 Titan 11000 | -6/Garrison | Rewired B-90 Cyclops 11024 | -6/Garrison | Revealed the true nature of CR-A16's Pointy Stick 11196 | -6/Garrison | Triggered checkpoint 11232 | -6/Garrison | Triggered checkpoint 11353 | -6/Garrison | Attempted to install RIF, but system incompatible 11399 | -6/Garrison | Discovered exit to Factory (range 12) 11440 | -6/Garrison | Attempted to access garrison exit controls, blocked by remote lockdown 11512 | -6/Garrison | Triggered checkpoint 11575 | -6/Garrison | Build established: Scavenger-Mutant 11590 | -6/Garrison | Garrison Relay disabled 11762 | -6/Garrison | Discovered exit to Factory (range 14) 11850 | -6/Garrison | Entered Factory 11850 | -6/Factory | Accompanied by 1 ally 11912 | -6/Factory | Identified exit to DSF 11917 | -6/Factory | Entered DSF 11917 | -6/DSF | Accompanied by 1 ally 11929 | -6/DSF | Additional patrols routed to DSF 11969 | -6/DSF | Identified exit to Factory 11969 | -6/DSF | Discovered exit to Factory (range 16) 12232 | -6/DSF | Sterilization system engaged 12252 | -6/DSF | Ambient heat levels rising (+10) 12267 | -6/DSF | Ambient heat levels rising (+10) 12282 | -6/DSF | Ambient heat levels rising (+10) 12297 | -6/DSF | Ambient heat levels rising (+10) 12311 | -6/DSF | Entered Factory 12311 | -5/Factory | Accompanied by 1 ally 12311 | -5/Factory | Evolved 2 slots: Utility x2 12367 | -5/Factory | Allies destroyed Cyclops 5a 12479 | -5/Factory | Zion Heavy squad teleported in 12608 | -5/Factory | Zion Heavy squad teleported in 12905 | -5/Factory | Lost 3 allies 12938 | -5/Factory | Build established: Messiah-Mutant 12951 | -5/Factory | Zion Light squad teleported in 13055 | -5/Factory | Identified exit to Garrison 13064 | -5/Factory | Identified exit to Upper Caves 13064 | -5/Factory | Discovered exit to Upper Caves (range 15) 13075 | -5/Factory | Retrieved Zion intel report: Component Schematics 13102 | -5/Factory | Entered Garrison 13102 | -5/Garrison | Accompanied by 3 allies 13164 | -5/Garrison | Spotted B-75 Beast 13195 | -5/Garrison | Destroyed B-75 Beast 13203 | -5/Garrison | Lost 3 allies 13262 | -5/Garrison | Lost 5 parts (1n3u1w) 13280 | -5/Garrison | Found Prototype Protection 13280 | -5/Garrison | Identified Zio. Weapon Casing 13291 | -5/Garrison | Found Zio. Weapon Casing 13510 | -5/Garrison | Build established: Hacker-Mutant 13548 | -5/Garrison | Triggered checkpoint 13630 | -5/Garrison | Lost 6 parts (2n3u1w) 13685 | -5/Garrison | Garrison Relay disabled 14072 | -5/Garrison | Triggered checkpoint 14107 | -5/Garrison | Build established: Messiah-Mutant 14132 | -5/Garrison | Triggered checkpoint 14184 | -5/Garrison | Garrison Relay disabled 14223 | -5/Garrison | Retrieved Zion intel report: Active Terminals 14263 | -5/Garrison | Identified exit to Factory 14263 | -5/Garrison | Discovered exit to Factory (range 10) 14340 | -5/Garrison | Rescued a captive Derelict 14348 | -5/Garrison | Rescued a captive Derelict 14352 | -5/Garrison | Attempted to access garrison exit controls, blocked by remote lockdown 14430 | -5/Garrison | Triggered checkpoint 14434 | -5/Garrison | Triggered checkpoint 14458 | -5/Garrison | Triggered checkpoint 14459 | -5/Garrison | Build established: Scavenger-Mutant 14613 | -5/Garrison | Discovered exit to Factory (range 12) 14622 | -5/Garrison | Triggered checkpoint 14637 | -5/Garrison | Garrison Relay disabled 14844 | -5/Garrison | Retrieved Zion intel report: Branch Access 14850 | -5/Garrison | Discovered exit to Factory (range 12) 14870 | -5/Garrison | Entered Factory 14891 | -5/Factory | Zion Hacking Resupply teleported in 15211 | -5/Factory | Build established: Hacker-Mutant 15406 | -5/Factory | Identified exit to Extension 15406 | -5/Factory | Discovered exit to Extension (range 6) 15413 | -5/Factory | Entered Extension 15454 | -5/Extension | Zion Infowar Resupply teleported in 15964 | -5/Extension | Rescued a captive Derelict 15965 | -5/Extension | Rescued a captive Derelict 15982 | -5/Extension | Zion Heavy squad teleported in 16106 | -5/Extension | Zion Recon squad teleported in 16136 | -5/Extension | Retrieved Zion intel report: Emergency Access 16152 | -5/Extension | Found Prototype Protection 16152 | -5/Extension | Identified Zio. Heavy Carapace 16168 | -5/Extension | Lost 3 allies 16239 | -5/Extension | Rescued a captive Derelict 16239 | -5/Extension | Rescued a captive Derelict 16245 | -5/Extension | Spotted B-75 Beast 16291 | -5/Extension | Spotted B-75 Beast 16308 | -5/Extension | Destroyed B-75 Beast 16310 | -5/Extension | Lost 3 allies 16314 | -5/Extension | Destroyed B-75 Beast 16354 | -5/Extension | Lost 3 parts (3u) 16480 | -5/Extension | Rescued a captive Derelict 16614 | -5/Extension | Build established: Scavenger-Mutant 16725 | -5/Extension | Rescued a captive Derelict 16727 | -5/Extension | Rescued a captive Derelict 16849 | -5/Extension | Rescued a captive Derelict 16900 | -5/Extension | Identified exit to Factory 16900 | -5/Extension | Discovered exit to Factory (range 10) 16902 | -5/Extension | Identified exit to Cetus 16902 | -5/Extension | Discovered exit to Cetus (range 6) 17238 | -5/Extension | Disrupted transfer network 17986 | -5/Extension | Core integrity fell below 50% 18127 | -5/Extension | Energy Cycler disabled 18128 | -5/Extension | Rescued a captive Derelict 18128 | -5/Extension | Rescued a captive Derelict 18128 | -5/Extension | Rescued a captive Derelict 18129 | -5/Extension | Rescued a captive Derelict 18131 | -5/Extension | Rescued a captive Derelict 18131 | -5/Extension | Rescued a captive Derelict 18245 | -5/Extension | Discovered exit to Factory (range 15) 18320 | -5/Extension | Rescued A7 18854 | -5/Extension | Entered Cetus 18854 | -5/Cetus | Accompanied by 3 allies (A7) 18859 | -5/Cetus | Acquired a Cetus Manufacturing Module code from A7 18907 | -5/Cetus | Spotted Cetus Guard 18907 | -5/Cetus | Spotted Cetus Guard 18911 | -5/Cetus | Spotted Cetus Guard 18911 | -5/Cetus | Spotted Cetus Guard 18917 | -5/Cetus | Allies destroyed Cetus Guard 18928 | -5/Cetus | Destroyed Cetus Guard 18939 | -5/Cetus | Allies destroyed Cetus Guard 18948 | -5/Cetus | Destroyed Cetus Guard 19035 | -5/Cetus | Started Cetus Manufacturing Module 19060 | -5/Cetus | Manufactured an Enhanced Grunt 19085 | -5/Cetus | Manufactured an Enhanced Grunt 19110 | -5/Cetus | Manufactured an Enhanced Grunt 19135 | -5/Cetus | Manufactured an Enhanced Grunt 19160 | -5/Cetus | Manufactured an Enhanced Grunt 19203 | -5/Cetus | Escorted A7 to Cetus Mainframe 19300 | -5/Cetus | Cetus Manufacturing Module disabled 19337 | -5/Cetus | Identified exit to Archives 19337 | -5/Cetus | Discovered exit to Archives (range 16) 19365 | -5/Cetus | Spotted Cetus Guard 19365 | -5/Cetus | Spotted Cetus Guard 19368 | -5/Cetus | Spotted Cetus Guard 19368 | -5/Cetus | Spotted Cetus Guard 19379 | -5/Cetus | Allies destroyed Cetus Guard 19384 | -5/Cetus | Allies destroyed Cetus Guard 19387 | -5/Cetus | Allies destroyed Cetus Guard 19390 | -5/Cetus | Discovered exit to Factory (range 16) 19392 | -5/Cetus | Allies destroyed Cetus Guard 19413 | -5/Cetus | Scared off Revision 17 19505 | -5/Cetus | Entered Archives 19505 | -5/Archives | Accompanied by 5 allies (A7) 19510 | -5/Archives | Received a hacking code to weaken MAIN.C 19568 | -5/Archives | Unable to access archive contents 19573 | -5/Archives | Identified exit to Hub_04(d) 19573 | -5/Archives | Discovered exit to Hub_04(d) (range 15) 19651 | -5/Archives | Discovered exit to Hub_04(d) (range 13) 19727 | -5/Archives | Discovered exit to Factory (range 13) 19822 | -5/Archives | Entered Hub_04(d) 19822 | -5/Hub_04(d) | Accompanied by 4 allies 19835 | -5/Hub_04(d) | Zion hero teleported in (ME-RLN) 19898 | -5/Hub_04(d) | Retrieved Zion intel report: Prototype Stockpiles 19982 | -5/Hub_04(d) | Discovered exit to Factory (range 4) 20003 | -5/Hub_04(d) | Retrieved Zion intel report: Component Schematics 20591 | -5/Hub_04(d) | Discovered exit to Factory (range 15) 20705 | -5/Hub_04(d) | Entered Factory 20705 | -4/Factory | Accompanied by 3 allies (ME-RLN) 20705 | -4/Factory | Evolved 2 slots: Utility x2 20849 | -4/Factory | ME-RLN assimilated hostile H-77 Assassin 20884 | -4/Factory | Identified exit to Upper Caves 20884 | -4/Factory | Discovered exit to Upper Caves (range 14) 20936 | -4/Factory | Zion Heavy squad teleported in 20968 | -4/Factory | Zion Light squad teleported in 21438 | -4/Factory | Identified exit to Research 21438 | -4/Factory | Discovered exit to Research (range 11) 21490 | -4/Factory | Entered Research 21490 | -3/Research | Accompanied by 7 allies (ME-RLN) 21490 | -3/Research | Evolved 2 slots: Weapon x2 21645 | -3/Research | Identified exit to Testing 21645 | -3/Research | Discovered exit to Testing (range 5) 21679 | -3/Research | Entered Testing 21679 | -3/Testing | Accompanied by 7 allies (ME-RLN) 21954 | -3/Testing | ME-RLN assimilated hostile C-55 Analyst 22140 | -3/Testing | Lost 7 allies 22163 | -3/Testing | Found Prototype Hackware 22163 | -3/Testing | Identified System Mapper 22166 | -3/Testing | Found Prototype Device 22166 | -3/Testing | Identified ME-RLN's Chromatic Screen 22177 | -3/Testing | Lost 3 parts (2u1w) 22180 | -3/Testing | Found Prototype Hackware 22180 | -3/Testing | Identified Ghost Barrier 22213 | -3/Testing | Found Prototype Device 22213 | -3/Testing | Identified Exp. Thermal Shield 22370 | -3/Testing | Retrieved Zion intel report: Active Terminals 22422 | -3/Testing | Retrieved Zion intel report: Prototype Stockpiles 22506 | -3/Testing | Destroyed 7 combat bots 22515 | -3/Testing | Lost 3 parts (2u1w) 22536 | -3/Testing | Found Prototype Device 22536 | -3/Testing | Identified 2N-1CE's Frost Array 22750 | -3/Testing | Found Prototype Device 22750 | -3/Testing | Identified Exp. Hardlight Generator 22943 | -3/Testing | Found Prototype Energy Cannon 22943 | -3/Testing | Identified Hpw. Disruptor Cannon 22992 | -3/Testing | Found Prototype Energy Cannon 22992 | -3/Testing | Identified Imp. Potential Cannon 23072 | -3/Testing | Retrieved Zion intel report: Unaware Analyses 23093 | -3/Testing | Build established: Hacker-Mutant 23096 | -3/Testing | Spotted Striker 23096 | -3/Testing | Spotted Striker 23168 | -3/Testing | System corruption reached 10% 23185 | -3/Testing | Found Prototype Processor 23185 | -3/Testing | Identified Exp. Targeting Computer 23211 | -3/Testing | Destroyed Striker 23239 | -3/Testing | Lost 3 parts (1p2u) 23286 | -3/Testing | Spotted Alpha 7 23336 | -3/Testing | Destroyed Alpha 7 23344 | -3/Testing | Lost 3 parts (2n1w) 23547 | -3/Testing | Stole the SGEMP Prototype 23713 | -3/Testing | Found Prototype Device 23713 | -3/Testing | Identified Exp. EM Disruption Field 23719 | -3/Testing | Found Prototype Hackware 23719 | -3/Testing | Identified Exp. Hacking Suite 23818 | -3/Testing | Found Prototype Hackware 23818 | -3/Testing | Identified Exp. System Shield 23917 | -3/Testing | Identified exit to Research 23917 | -3/Testing | Discovered exit to Research (range 15) 24028 | -3/Testing | Spotted PY-1U9U8K6L8Z 24300 | -3/Testing | Build established: Wizard-Tank 24331 | -3/Testing | Entered Research 24331 | -2/Research | Evolved 2 slots: Power x1, Weapon x1 24484 | -2/Research | Zion Hacker squad teleported in 24550 | -2/Research | Found Prototype Device 24550 | -2/Research | Identified Exp. Shield Generator 24554 | -2/Research | Found Exp. Shield Generator 24850 | -2/Research | Repaired Exp. Heat Sink 25166 | -2/Research | Zion Light squad teleported in 25287 | -2/Research | Fabricated H-88 Terminator (x2) 25503 | -2/Research | Lost 3 allies 25545 | -2/Research | Destroyed 12 combat bots 25621 | -2/Research | Core integrity fell below 50% 25650 | -2/Research | Core integrity fell below 20% 25657 | -2/Research | Spotted Executioner 25658 | -2/Research | Cargo convoy interrupted 25658 | -2/Research | Destroyed by G-73 Enforcer with Phase Gun Last Messages --------------- 25652_ Penetrated by Slug. 25654_ K-01 Serf destroyed. 25654_ K-01 Serf collects debris. 25655_ K-01 Serf destroyed. 25655_ Slug penetrates Wall. 25656_ K-01 Serf collects debris. 25657_ C-45 Heavy ARC bursts open, deploying its payload. 25657_ P-80 Master unfolds itself. 25657_ Executioner unfolds itself. 25657_ X-87 Electro unfolds itself. 25657_ M-36 Artificer unfolds itself. 25657_ K-01 Serf suffers critical hit (Destroy). 25657_ K-01 Serf destroyed. 25657_ Penetrated by Slug. 25657_ K-01 Serf collects debris. 25658_ ALERT: Cargo convoy interrupted, initiating access lockdown. 25658_ Penetrated by Slug. 25658_ Acquired Wheel. Map ----- +----------------------------------------------------+ | ?????????????????????????????????????????????????? | | ?????????????????????????????????????????????????? | | ?????????????????????????????????????????????????? | | ?????????????????????????????????????????????????? | | ?????????????????????????????????????????????????? | | ?????????????????????????????????????????????????? | | ?????????????????????????????????????????????????? | | ?????????????????????????????????????????????????? | | ?????????????????????????????????????????????????? | | ?????????????????????????????????????????????????? | | ?????????????????????????????????????????????????? | | ????????????????????????????? ???????????????????? | | ??????????????????""??????? #??????????????????? | | ??????????????????""??????? #??????????????????? | | ??????????????????S"?????? #??????????????????? | | ???????""""??????"""?????? #??????????????????? | | ???????""R""?????"""?????? #??????????????????? | | ???????""?""?????"""?????? #??????????????????? | | ?????????????????????????# +??????????????????? | | ?????????????????????????# #??????????????????? | | ?????????????????????????# #??????????????????? | | ?????????????????????????#u #??????????????????? | | ?????????????????????#???#* #?????????????????"" | | ????????????????????##;###=##+#####?????????????"" | | ???????????????#######[%=%=%!= #?????????????"" | | ??????????????# =[=;=%k@*%== #??????????????? | | ???????????????#######g%|%%*=% !#???##?????????? | | ????????????????????##=gY=!%%% #######"######## | | ????????????????????##==%!*= m p# % | | ????????????????????##|!= %A xEi % % | | ????????????????????##!%= !! R # % % % | | ????????????????????##%!! !! # % | | ????????????????????##! ## =#######+#### | | ?????????????????????# ! * ## %#?# | | ?????????????????????#=!! ## #?# | | ?????????????????????#%%|* ## #?# """" | | ?????????????????????##+############ #?# """" | | ??????????????????????#%#??????????# #?# """" | | ??????????????????????#!#??????????# #?# """" | | ??????????????????????#!#??????????+ #?# | | ?????????????????????? !=??????????# #?# ?? | | ?????????????????????? ??????????# #?######???? | | ??????????????????????? ??????????# #??????????? | | ??????????????????????? ??????????# ???????????? | | ???????????????????????????????????? ???????????? | | ???????????????????????????????????? ???????????? | | ???????????????????????????????????? ???????????? | | ?????????????????????????????????????????????????? | | ?????????????????????????????????????????????????? | | ?????????????????????????????????????????????????? | +----------------------------------------------------+ Best States ------------- Heat Dissipation 210 Energy Generation 65 Energy Capacity 1260 Matter Stores 700 Matter Capacity 700 Sight Range 16 Robot Scan Range 20 Terrain Scan Density 10 Additional Mass Support 9 EM Shielding 4 Armor Coverage 1200 Resistance: KI 55 Resistance: TH 60 Resistance: EX 85 Resistance: EM 55 Resistance: I 55 Resistance: S 55 Resistance: P 55 Core Shielding 30 Power Shielding 90 Weapon Shielding 100 Phase Shifting 10 Evasion (%) 55 Target Analysis 8 Armor Integrity Analysis 30 Recoil Reduction 6 Offensive Hacking 56 Defensive Hacking 20 Authchip Count 6 Item Schematics ----------------- Gatling Laser | -7/Zion | Archive Focal Shield | -7/Zion | Archive Imp. Deuterium Engine | -7/Zion | Archive Force Booster | -7/Zion | Archive Fusion Compressor | -7/Zion | Archive Adv. Sensor Array | -7/Zion | Archive Imp. Kinecellerator | -7/Zion | Archive Proton Cannon | -7/Zion | Archive Component Analysis Suite | -7/Zion | Archive Imp. Focal Shield | -7/Zion | Archive Gauss Rifle | -7/Zion | Archive Stasis Canceller | -7/Zion | Archive Arm. Huge Wheel | -7/Zion | Archive Hvy. Machine Gun | -7/Zion | Archive Hvy. Phase Cannon | -5/Factory | Z-intel Adv. Terrain Scanner | -5/Factory | Z-intel Lgt. Fission Core | -5/Factory | Z-intel Imp. Terrain Scan Processor | -5/Factory | Z-intel Adv. Signal Interpreter | -5/Factory | Z-intel Com. Wheel | -5/Factory | Z-intel Seismic Detector | -5/Factory | Z-intel Core Analyzer | -5/Factory | Z-intel Arm. Leg | -5/Factory | Z-intel Dynamic Insulation System | -5/Factory | Z-intel Med. Storage Unit | -5/Factory | Z-intel Reaction Control System | -5/Factory | Z-intel Adv. Drone Bay | -5/Factory | Z-intel Imp. Particle Charger | -5/Factory | Z-intel Huge Storage Unit | -5/Factory | Scanalyzed Imp. Recalibrator | -5/Hub_04(d) | Z-intel Angular Momentum Engine | -5/Hub_04(d) | Z-intel KE Penetrator | -5/Hub_04(d) | Z-intel Imp. Titanium Leg | -5/Hub_04(d) | Z-intel Imp. Coolant Injector | -5/Hub_04(d) | Z-intel Antigrav System | -5/Hub_04(d) | Z-intel Lrg. Matter Pod | -5/Hub_04(d) | Z-intel System Shield | -5/Hub_04(d) | Z-intel Variable Charge Gun | -5/Hub_04(d) | Z-intel Drone Bay | -5/Hub_04(d) | Z-intel Imp. Concussive RPG | -5/Hub_04(d) | Z-intel Wave Gun | -5/Hub_04(d) | Z-intel Exp. Thermal Generator | -3/Testing | Archive Hvy. Hardcell Cannon | -3/Testing | Archive Mni. Smartbomb Launcher | -3/Testing | Archive Cld. Field Propulsion Drive | -3/Testing | Archive Prc. Matter Filter | -3/Testing | Archive Exp. Matter Compressor | -3/Testing | Archive System Purifier | -3/Testing | Archive Plasma Lance | -3/Testing | Archive Quantum Shading Machine | -3/Testing | Archive Cld. Nuclear Pulse Thruster | -3/Testing | Archive Coolant Network | -3/Testing | Archive Com. Mass Driver | -3/Testing | Archive Molecular Scythe | -3/Testing | Archive Imp. Energy Well | -3/Testing | Archive Enh. Coil Gun | -3/Testing | Archive Robot Schematics ------------------ O-24 Administrator | -7/Zion | Archive K-01 Serf | -7/Zion | Archive A-02 Transporter | -7/Zion | Archive H-88 Terminator | -7/Zion | Archive G-67 Veteran | -3/Testing | Archive R-06 Scavenger | -3/Testing | Archive Y-72 Warden | -3/Testing | Archive M-36 Artificer | -3/Testing | Archive S-43 Plague | -3/Testing | Archive Fabricated ------------ H-88 Terminator | x2 | -2/Research Repaired ---------- Exp. Heat Sink | 21% | -2/Research Studied --------- Imp. Carbon-fiber Leg | -6/Factory | Hacked Arm. Medium Treads | -5/Factory | Hacked Imp. Heavy Treads | -3/Testing | Hacked Imp. Medium Treads | -3/Testing | Hacked Adv. Remote Datajack | -3/Testing | Hacked Railgun | -3/Testing | Hacked Gamma Rifle | -3/Testing | Hacked Enh. Nova Cannon | -2/Research | Hacked Biometal Heavy Treads | -2/Research | Hacked Adv. Heavy Treads | -2/Research | Hacked Alien Tech Used ----------------- None Achievements -------------- All Kinds Of Bad News Freeware Friend Of Zion Generalissimo Hard Hitter Heroic Deeds Max Potential The Robot, The Myth, The Legend Challenges ------------ None Game ------ Seed PlasmaNeutrinoDisplacer Manual? 0 Play Time 02:42:44 Cumulative 111.9 hours Start 2025.11.18 @ 16:06:42 End 2025.11.18 @ 18:49:16 Sessions 1 Manual Loads 0 Difficulty Explorer Special Mode None Game No. 127 Rogue 0 Adventurer 0 Explorer 127 Win Type - Total 0 Types 0/0/0/0/0/0/0/0/0/0 Lore% 63 Gallery% 62 Achievement% 49 Wizard Run 0 Options --------- Layout 1 ASCII 0 Keyboard 0 Movement Mouse Keybinds 0 Fullscreen 1 Font 24/Smallcaps Map View 50x35 Zoom Use 0% Tactical HUD 1 Map Filters NONE Filters NONE Steam 1 RUN: 5294c4db-9cba-4955-9162-389a6d5063f4